{"text_format":"1","workbook":"xlsx","n_sheets":3,"sheets":["Base","Modelo","Gerador_Calendário"],"not_rendered":{"charts":0,"images":1,"macros":1,"external_links":0,"defined_names":3,"comments":0,"pivot_tables":0},"unopened":[],"bounds":{"document_bytes":16777216,"sheet_cells":100000,"rows_first":2000,"rows_last":500,"rows_between":2000,"halvings":0,"cell_chars":16384,"cell_head_chars":4096},"cells_cut":0,"cells_raw":0,"read":"whole","date_system":"1900"}

{"sheet":"Base","index":0,"n_rows":91,"n_cols":8,"rows_kept":91,"cut":false,"hidden":true,"merged":[[1,3,1,4],[0,6,0,7]]}
["Mês","Ano",null,null,null,null,"Lista de Feriados"]
["Janeiro",2010,null,"Base de Calculo",null,null,"2011-01-01","Confraternização"]
["Fevereiro",2011,null,2012,"Ano",null,"2011-01-20","São Sebastião (RJ)"]
["Março",2012,null,12,"Mês",null,"2011-03-08","Carnaval"]
["Abril",2013,null,{"$f":"MOD(D6,7)","v":0},"Sem",null,"2011-04-21","Tiradentes"]
["Maio",2014,null,{"$f":"DATEVALUE(\"01/\"&D4&\"/\"&D3)","v":"2012-12-01"},"Primeiro Dia",null,"2011-04-22","Sexta-Feira Santa"]
["Junho",2015,null,null,null,null,"2011-04-23","São Jorge (RJ)"]
["Julho",2016,null,null,null,null,"2011-04-24","Pascoa"]
["Agosto",2017,null,null,null,null,"2011-05-01","Dia do Trabalho"]
["Setembro",2018,null,null,null,null,"2011-06-23","Corpus Christi"]
["Outubro",2019,null,null,null,null,"2011-09-07","Independencia"]
["Novembro",2020,null,null,null,null,"2011-10-12","N.S.Aparecida"]
["Dezembro",2021,null,null,null,null,"2011-11-02","Finados"]
[null,null,null,null,null,null,"2011-11-15","Proclam.Republica"]
[null,null,null,null,null,null,"2011-11-20","Consciencia Negra"]
[null,null,null,null,null,null,"2011-12-25","Natal"]
[null,null,null,null,null,null,"2012-01-01","Confraternização"]
[null,null,null,null,null,null,"2012-01-20","São Sebastião (RJ)"]
[null,null,null,null,null,null,"2012-02-21","Carnaval"]
[null,null,null,null,null,null,"2012-04-06","Sexta-Feira Santa"]
[null,null,null,null,null,null,"2012-04-08","Pascoa"]
[null,null,null,null,null,null,"2012-04-21","Tiradentes"]
[null,null,null,null,null,null,"2012-04-23","São Jorge (RJ)"]
[null,null,null,null,null,null,"2012-05-01","Dia do Trabalho"]
[null,null,null,null,null,null,"2012-06-07","Corpus Christi"]
[null,null,null,null,null,null,"2012-09-07","Independencia"]
[null,null,null,null,null,null,"2012-10-12","N.S.Aparecida"]
[null,null,null,null,null,null,"2012-11-02","Finados"]
[null,null,null,null,null,null,"2012-11-15","Proclam.Republica"]
[null,null,null,null,null,null,"2012-11-20","Consciencia Negra"]
[null,null,null,null,null,null,"2012-12-25","Natal"]
[null,null,null,null,null,null,"2013-01-01","Confraternização"]
[null,null,null,null,null,null,"2013-01-20","São Sebastião (RJ)"]
[null,null,null,null,null,null,"2013-02-12","Carnaval"]
[null,null,null,null,null,null,"2013-04-21","Tiradentes"]
[null,null,null,null,null,null,"2013-03-29","Sexta-Feira Santa"]
[null,null,null,null,null,null,"2013-03-31","Pascoa"]
[null,null,null,null,null,null,"2013-04-23","São Jorge (RJ)"]
[null,null,null,null,null,null,"2013-05-01","Dia do Trabalho"]
[null,null,null,null,null,null,"2013-05-30","Corpus Christi"]
[null,null,null,null,null,null,"2013-09-07","Independencia"]
[null,null,null,null,null,null,"2013-10-12","N.S.Aparecida"]
[null,null,null,null,null,null,"2013-11-02","Finados"]
[null,null,null,null,null,null,"2013-11-15","Proclam.Republica"]
[null,null,null,null,null,null,"2013-11-20","Consciencia Negra"]
[null,null,null,null,null,null,"2013-12-25","Natal"]
[null,null,null,null,null,null,"2014-01-01","Confraternização"]
[null,null,null,null,null,null,"2014-01-20","São Sebastião (RJ)"]
[null,null,null,null,null,null,"2014-03-04","Carnaval"]
[null,null,null,null,null,null,"2014-04-21","Tiradentes"]
[null,null,null,null,null,null,"2014-04-18","Sexta-Feira Santa"]
[null,null,null,null,null,null,"2014-04-20","Pascoa"]
[null,null,null,null,null,null,"2014-04-23","São Jorge (RJ)"]
[null,null,null,null,null,null,"2014-05-01","Dia do Trabalho"]
[null,null,null,null,null,null,"2014-06-19","Corpus Christi"]
[null,null,null,null,null,null,"2014-09-07","Independencia"]
[null,null,null,null,null,null,"2014-10-12","N.S.Aparecida"]
[null,null,null,null,null,null,"2014-11-02","Finados"]
[null,null,null,null,null,null,"2014-11-15","Proclam.Republica"]
[null,null,null,null,null,null,"2014-11-20","Consciencia Negra"]
[null,null,null,null,null,null,"2014-12-25","Natal"]
[null,null,null,null,null,null,"2015-01-01","Confraternização"]
[null,null,null,null,null,null,"2015-01-20","São Sebastião (RJ)"]
[null,null,null,null,null,null,"2015-02-17","Carnaval"]
[null,null,null,null,null,null,"2015-04-21","Tiradentes"]
[null,null,null,null,null,null,"2015-04-03","Sexta-Feira Santa"]
[null,null,null,null,null,null,"2015-04-05","Pascoa"]
[null,null,null,null,null,null,"2015-04-23","São Jorge (RJ)"]
[null,null,null,null,null,null,"2015-05-01","Dia do Trabalho"]
[null,null,null,null,null,null,"2015-06-04","Corpus Christi"]
[null,null,null,null,null,null,"2015-09-07","Independencia"]
[null,null,null,null,null,null,"2015-10-12","N.S.Aparecida"]
[null,null,null,null,null,null,"2015-11-02","Finados"]
[null,null,null,null,null,null,"2015-11-15","Proclam.Republica"]
[null,null,null,null,null,null,"2015-11-20","Consciencia Negra"]
[null,null,null,null,null,null,"2015-12-25","Natal"]
[null,null,null,null,null,null,"2016-01-01","Confraternização"]
[null,null,null,null,null,null,"2016-01-20","São Sebastião (RJ)"]
[null,null,null,null,null,null,"2016-02-09","Carnaval"]
[null,null,null,null,null,null,"2016-04-21","Tiradentes"]
[null,null,null,null,null,null,"2016-03-25","Sexta-Feira Santa"]
[null,null,null,null,null,null,"2016-03-27","Pascoa"]
[null,null,null,null,null,null,"2016-04-23","São Jorge (RJ)"]
[null,null,null,null,null,null,"2016-05-01","Dia do Trabalho"]
[null,null,null,null,null,null,"2016-05-26","Corpus Christi"]
[null,null,null,null,null,null,"2016-09-07","Independencia"]
[null,null,null,null,null,null,"2016-10-12","N.S.Aparecida"]
[null,null,null,null,null,null,"2016-11-02","Finados"]
[null,null,null,null,null,null,"2016-11-15","Proclam.Republica"]
[null,null,null,null,null,null,"2016-11-20","Consciencia Negra"]
[null,null,null,null,null,null,"2016-12-25","Natal"]

{"sheet":"Modelo","index":1,"n_rows":29,"n_cols":8,"rows_kept":29,"cut":false,"hidden":true,"merged":[[0,1,0,7]]}
[null,{"$f":"PROPER(TEXT(Base!D6, \"mmmm - aaaa\"))","v":"Dezembro - 2012"}]
[]
[null,"Dom","Seg","Ter","Qua","Qui","Sex","Sáb"]
[null,{"$f":"IF(Base!D5=1,1,\"  \")","v":"  "},{"$f":"IF(ISNUMBER(B4),B4+1,IF(Base!D5=2,1,\"  \"))","v":"  "},{"$f":"IF(ISNUMBER(C4),C4+1,IF(Base!D5=3,1,\"  \"))","v":"  "},{"$f":"IF(ISNUMBER(D4),D4+1,IF(Base!D5=4,1,\"  \"))","v":"  "},{"$f":"IF(ISNUMBER(E4),E4+1,IF(Base!D5=5,1,\"  \"))","v":"  "},{"$f":"IF(ISNUMBER(F4),F4+1,IF(Base!D5=6,1,\"  \"))","v":"  "},{"$f":"IF(ISNUMBER(G4),G4+1,IF(Base!D5=0,1,\"  \"))","v":1}]
[]
[]
[]
[]
[null,{"$f":"+H4+1","v":2},{"$f":"+B9+1","v":3},4,5,6,7,8]
[]
[]
[]
[]
[null,{"$f":"+H9+1","v":9},{"$f":"+B14+1","v":10},{"$f":"+C14+1","v":11},12,13,14,15]
[]
[]
[]
[]
[null,{"$f":"+H14+1","v":16},{"$f":"+B19+1","v":17},18,19,20,21,22]
[]
[]
[]
[]
[null,{"$f":"IF(MONTH(Base!D6+$H$19)=Base!D4,$H$19+1,\"  \")","v":23},{"$f":"IF(MONTH(Base!D6+$H$19+1)=Base!D4,$H$19+2,\"  \")","v":24},{"$f":"IF(MONTH(Base!D6+$H$19+2)=Base!D4,$H$19+3,\"  \")","v":25},{"$f":"IF(MONTH(Base!D6+$H$19+3)=Base!D4,$H$19+4,\"  \")","v":26},{"$f":"IF(MONTH(Base!D6+$H$19+4)=Base!D4,$H$19+5,\"  \")","v":27},{"$f":"IF(MONTH(Base!D6+$H$19+5)=Base!D4,$H$19+6,\"  \")","v":28},{"$f":"IF(MONTH(Base!D6+$H$19+6)=Base!D4,$H$19+7,\"  \")","v":29}]
[]
[]
[]
[]
[null,{"$f":"IF(MONTH(Base!D6+$H$19+7)=Base!D4,$H$19+8,\"  \")","v":30},{"$f":"IF(MONTH(Base!D6+$H$19+8)=Base!D4,$H$19+9,\"  \")","v":31},{"$f":"IF(MONTH(Base!D6+$H$19+9)=Base!D4,$H$19+10,\"  \")","v":"  "},{"$f":"IF(MONTH(Base!D6+$H$19+10)=Base!D4,$H$19+11,\"  \")","v":"  "},{"$f":"IF(MONTH(Base!D6+$H$19+11)=Base!D4,$H$19+12,\"  \")","v":"  "},{"$f":"IF(MONTH(Base!D6+$H$19+12)=Base!D4,$H$19+13,\"  \")","v":"  "},{"$f":"IF(MONTH(Base!D6+$H$19+13)=Base!D4,$H$19+14,\"  \")","v":"  "}]

{"sheet":"Gerador_Calendário","index":2,"n_rows":4,"n_cols":2,"rows_kept":4,"cut":false,"hidden":false,"merged":[]}
[]
[]
[]
[null," Gerador de Calendário Com Indicação dos Feriados (RJ)"]